Cogmind - Beta 13 @@@ ROGUE MODE // 2024.03.26 @ 18:03:48 Player: Desymo99 Result: Destroyed by C-35 Carver with Carbide Saw Performance ------------- Evolutions (7) 3500 Regions Visited (11) 2200 Robots Destroyed (38) 190 Value Destroyed (851) 851 Prototype IDs (5) 100 Alien Tech Used (0) 0 Bonus (314) 314 TOTAL SCORE: 7155 Bonus ------- High Alert Combat Kills 16 Follower Combat Kills 329 Friendly Fire -31 Cogmind --------- Core Integrity 0/1300 Matter 196/300 Energy 99/100 System Corruption 2% Temperature Cool (0) Movement Core (50) Location -3/Research Parts ------- > --- POWER (2) -------- (None) > --- PROPULSION (8) --- (None) > --- UTILITY (9) ------ Improved Signal Interpreter > --- WEAPON (2) ------- (None) > --- INVENTORY (5) ---- Neutrino Core Light Particle Reactor Micro Antimatter Reactor Improved Cooling System Advanced Sensor Array Peak State ------------ > --- POWER ------------ Light Particle Reactor Micro Antimatter Reactor > --- PROPULSION ------- Field Propulsion Drive Field Propulsion Drive Nuclear Pulse Array Electron Diverter > --- UTILITY ---------- Coolant Injector Structural Scanner Long-range Sensor Array Improved Signal Interpreter Improved Transmission Jammer Improved Reaction Control System Hardlight Generator > --- WEAPON ----------- Great Maul > --- INVENTORY -------- Light Deuterium Engine Neutrino Core Improved Cooling System Advanced Sensor Array [Rating: 82] Favorites ----------- Power Light Deuterium Engine Engine Light Deuterium Engine Power Core Nuclear Core Reactor Antimatter Reactor Propulsion Flight Unit Wheel Compact Wheel Flight Unit Flight Unit Utility Improved Signal Interpreter Device Sensor Array Storage Small Storage Unit Processor Improved Signal Interpreter Protection Light Armor Plating Weapon Light Assault Rifle Energy Gun EM Pulse Gun Ballistic Gun Light Assault Rifle Launcher Shock Bomb Launcher Impact Weapon Great Maul Build | -11 -10 -9 -8 -7 -6 -6 -6 -5 -5 -4 -3 ------- Run | Yrd Mat Mat Mat Fac Fac Low Low Fac Ext Fac Res Slots Evolved 14 | . . 2 2 2 2 . . 2 . 2 2 Power 1 | . . . . 1 . . . . . . . Propulsion 6 | . . 2 . . 1 . . 1 . 1 1 Utility 7 | . . . 2 1 1 . . 1 . 1 1 Weapon . | . . . . . . . . . . . . Parts Attached 103 | 4 22 10 15 1 7 . 1 3 5 14 21 Power 18 | 1 3 1 2 . 3 . . . . 4 4 Engine 11 | 1 3 1 2 . 1 . . . . 1 2 Core 4 | . . . . . 2 . . . . 2 . Reactor 3 | . . . . . . . . . . 1 2 Propulsion 18 | 2 2 2 3 . 1 . . . 2 1 5 Treads . | . . . . . . . . . . . . Leg . | . . . . . . . . . . . . Wheel 2 | 2 . . . . . . . . . . . Hover . | . . . . . . . . . . . . Flight 16 | . 2 2 3 . 1 . . . 2 1 5 Utility 33 | 1 7 2 4 . 3 . 1 2 1 8 4 Device 24 | . 5 1 1 . 3 . 1 1 1 8 3 Storage 2 | 1 1 . . . . . . . . . . Processor 4 | . 1 . 1 . . . . 1 . . 1 Hackware . | . . . . . . . . . . . . Protection 3 | . . 1 2 . . . . . . . . Artifact . | . . . . . . . . . . . . Weapon 34 | . 10 5 6 1 . . . 1 2 1 8 Energy Gun 1 | . 1 . . . . . . . . . . Energy Cannon . | . . . . . . . . . . . . Ballistic Gun 17 | . 9 2 3 1 . . . 1 . . 1 Ballistic Cannon . | . . . . . . . . . . . . Launcher 7 | . . 3 3 . . . . . . . 1 Special Weapon . | . . . . . . . . . . . . Impact Weapon 9 | . . . . . . . . . 2 1 6 Slashing Weapon . | . . . . . . . . . . . . Piercing Weapon . | . . . . . . . . . . . . Special Melee Weapon . | . . . . . . . . . . . . Unidentified Prototypes 3 | . . . 1 . . . . 1 . . 1 Corrupted Parts 1 | . 1 . . . . . . . . . . System Corruption 3 | . 3 . . . . . . . . . . Parts Lost 23 | . 1 4 . . . . . . 5 1 12 Power 2 | . 1 . . . . . . . . . 1 Propulsion 12 | . . 2 . . . . . . 4 1 5 Utility 7 | . . 1 . . . . . . 1 . 5 Weapon 2 | . . 1 . . . . . . . . 1 Highest Loss Streak 11 | . 1 2 . . . . . . 5 1 11 To Critical Strikes . | . . . . . . . . . . . . Average Slot Usage (%) 82 | . 97 91 93 80 98 100 96 83 80 55 42 Engine 7 | . 14 11 8 7 6 6 6 5 5 1 . Core 1 | . . . . . 5 6 6 5 5 1 . Wheel 1 | . 7 . . . . . . . . . . Flight 25 | . 20 37 32 30 32 33 33 29 28 17 11 Device 17 | . 20 10 13 7 19 20 26 23 22 25 18 Storage 1 | . 7 . . . . . . . . . . Processor 4 | . . . 4 7 6 6 6 6 5 5 5 Protection 6 | . . 10 17 15 13 13 6 5 4 . . Ballistic Gun 12 | . 24 18 16 11 13 13 9 5 4 . . Naked Turns . | . . . . . . . . . . . . Heaviest Build 29 | 8 21 17 18 12 22 22 23 22 26 29 29 Greatest Support 35 | 32 32 16 16 16 22 22 22 22 28 30 35 Greatest Overweight (x) 4 | . 1 1 1 . . . 1 . 1 . 4 Average Overweight (x) . | . . . . . . . . . . . . Largest Inventory Capacity 10 | 8 10 5 5 5 5 5 5 5 5 5 5 Average Capacity 5 | 6 6 5 5 5 5 5 5 5 5 5 5 Most Carried 8 | . 8 5 5 5 5 5 5 5 5 5 5 Average Carried 4 | . 4 4 4 4 3 5 5 4 4 4 4 Final Capacity 8 | 8 5 5 5 5 5 5 5 5 5 5 5 Final Carried 5 | . 5 5 5 5 5 5 5 5 5 5 5 Class Distribution -------------------- 27% | Scavenger-Sprinter 23% | Scavenger-Scout 19% | Scavenger-Mutant 13% | Scout 10% | Mutant Dominant Class ---------------- Scavenger-Mutant | -10/Materials Scavenger-Mutant | -9/Materials Scavenger-Sprinter | -8/Materials Scavenger-Sprinter | -7/Factory Scavenger-Scout | -6/Factory Scavenger-Scout | -6/Lower Caves Scavenger-Scout | -6/Lower Caves Scavenger-Scout | -5/Factory Scavenger-Scout | -5/Extension Scout | -4/Factory Scout | -3/Research Resources | -11 -10 -9 -8 -7 -6 -6 -6 -5 -5 -4 -3 ----------- Run | Yrd Mat Mat Mat Fac Fac Low Low Fac Ext Fac Res Matter Collected 1488 | 229 234 188 124 12 71 49 29 81 199 24 248 Remotely 77 | . . . 77 . . . . . . . . Salvage Created 1070 | . 340 427 134 . . 29 . . . . 140 Parts 86 | . 37 24 15 . . . . . . . 10 Haulers Intercepted 3 | . 1 1 1 . . . . . . . . Recyclers Shooed 2 | . 1 1 . . . . . . . . . Parts Field Recycled . | . . . . . . . . . . . . Retrieved Matter . | . . . . . . . . . . . . Parts Self-Destructed 5 | . . . . . . 5 . . . . . Prevented . | . . . . . . . . . . . . Kills | -11 -10 -9 -8 -7 -6 -6 -6 -5 -5 -4 -3 ------- Run | Yrd Mat Mat Mat Fac Fac Low Low Fac Ext Fac Res Combat Hostiles Destroyed 25 | . 10 5 6 . . . . . . . 4 Guns 12 | . 9 2 . . . . . . . . 1 AOE 13 | . 1 3 6 . . . . . . . 3 Classes Destroyed 9 | . 5 3 . . . 1 . . . . . Worker 1 | . . . . . . . . . . . 1 Hauler 3 | . 1 1 1 . . . . . . . . Recycler 1 | . . 1 . . . . . . . . . Operator 3 | . 3 . . . . . . . . . . Watcher 5 | . 3 1 1 . . . . . . . . Swarmer 15 | . 8 . 4 . . . . . . . 3 Grunt 8 | . 2 3 2 . . . . . . . 1 Brawler 1 | . . 1 . . . . . . . . . Sentry 1 | . . 1 . . . . . . . . . Decomposer 1 | . . . . . . 1 . . . . . Best Kill Streak 6 | . 3 4 6 . . . . . . . 4 Combat Bots Only 6 | . 3 3 6 . . . . . . . 3 Max Kills in Single Turn 3 | . 2 3 2 . . 1 . . . . 3 Gunslinging . | . . . . . . . . . . . . Exploded 2 | . 1 2 2 . . . . . . . 2 Melee . | . . . . . . . . . . . . Uniques/NPCs Destroyed . | . . . . . . . . . . . . Combat | -11 -10 -9 -8 -7 -6 -6 -6 -5 -5 -4 -3 -------- Run | Yrd Mat Mat Mat Fac Fac Low Low Fac Ext Fac Res Hostile Shots Fired 367 | . 55 45 20 . 11 2 . 3 31 22 178 Missed 178 | . 25 20 10 . 8 1 . 2 14 15 83 Damage Taken 3622 | . 347 411 141 . 16 15 . 15 367 270 2040 Core 1625 | . 82 101 29 . . . . . 43 59 1311 Absorbed by Shields 33 | . . . . . . . . . 27 6 . Redirected to Shielding 43 | . . 30 10 . 3 . . . . . . Regen/Repaired (Parts) 64 | . . . 64 . . . . . . . . Core Remaining (%) 90 | 100 67 74 94 100 . . 100 . 95 94 . Volleys Fired 130 | . 67 26 25 1 . 2 . . . . 9 Largest 2 | . 2 2 2 2 . 2 . . . . 1 Hottest 72 | . 60 72 59 40 . 40 . . . . 49 Shots Fired 231 | . 124 50 42 2 . 4 . . . . 9 Gun 214 | . 124 45 32 2 . 4 . . . . 7 Cannon . | . . . . . . . . . . . . Launcher 17 | . . 5 10 . . . . . . . 2 Special . | . . . . . . . . . . . . Kinetic 195 | . 105 45 32 2 . 4 . . . . 7 Thermal . | . . . . . . . . . . . . Explosive 13 | . . 1 10 . . . . . . . 2 Electromagnetic 23 | . 19 4 . . . . . . . . . Robot Hit Streak 5 | . 5 4 5 3 . 3 . . . . 5 Robot Miss Streak 6 | . 6 2 3 . . 1 . . . . 1 Penetration Max . | . . . . . . . . . . . . Secondary Targets 3 | . 2 1 . . . . . . . . . Max Gunslinging Chain 1 | . 1 1 . . . . . . . . . Shots Hit Robots 116 | . 58 29 17 2 . 3 . . . . 7 Core Hits 70 | . 28 17 12 2 . 1 . . . . 10 Critical Kills 1 | . 1 . . . . . . . . . . Critical Parts Destroyed . | . . . . . . . . . . . . Critical Strikes 1 | . 1 . . . . . . . . . . Destroy 1 | . 1 . . . . . . . . . . Melee Attacks 37 | . . . . . . . . . 20 1 16 Impact 37 | . . . . . . . . . 20 1 16 Slashing . | . . . . . . . . . . . . Piercing . | . . . . . . . . . . . . Sneak Attacks . | . . . . . . . . . . . . Combat Hostiles . | . . . . . . . . . . . . Follow-up Attacks . | . . . . . . . . . . . . Damage Inflicted 2724 | . 725 451 718 14 . 25 . . 53 . 738 Guns 1094 | . 523 237 114 14 . 25 . . . . 181 Cannons . | . . . . . . . . . . . . Explosions 1571 | . 198 214 604 . . . . . . . 555 Melee . | . . . . . . . . . . . . Ramming 59 | . 4 . . . . . . . 53 . 2 Kinetic 978 | . 407 237 114 14 . 25 . . . . 181 Thermal 198 | . 198 . . . . . . . . . . Explosive 1161 | . . 2 604 . . . . . . . 555 Electromagnetic 328 | . 116 212 . . . . . . . . . Impact . | . . . . . . . . . . . . Slashing . | . . . . . . . . . . . . Piercing . | . . . . . . . . . . . . Highest Corruption 3 | . 3 3 . . . . . . . 2 2 Average Corruption 2 | . 3 2 . . . . . . . 1 1 Corruption Purged . | . . . . . . . . . . . . Corruption Blocked . | . . . . . . . . . . . . Effects 15 | . 8 2 . . . . . . . 1 4 Message Errors 2 | . 1 . . . . . . . . . 1 Matter Fused 7 | . 4 2 . . . . . . . . 1 Heat Flow Errors 1 | . 1 . . . . . . . . . . Parts Rejected 1 | . . . . . . . . . . . 1 Data Loss (minor) 2 | . 1 . . . . . . . . 1 . Data Loss (major) 1 | . . . . . . . . . . . 1 Alerts 1 | . 1 . . . . . . . . . . Overload Shots . | . . . . . . . . . . . . Overflow Damage 131 | . 2 9 40 . . . . . . . 80 Projectiles . | . . . . . . . . . . . . Explosions 131 | . 2 9 40 . . . . . . . 80 Melee . | . . . . . . . . . . . . Knockbacks . | . . . . . . . . . . . . Impact . | . . . . . . . . . . . . Kinetic . | . . . . . . . . . . . . Secondary . | . . . . . . . . . . . . Self-Inflicted Damage 203 | . 100 26 10 . . . . . 26 . 41 Shots 5 | . 2 1 1 . . . . . . . 1 Rammed 3 | . 1 . . . . . . . 1 . 1 Targets Rammed 3 | . 1 . . . . . . . 1 . 1 Kicked . | . . . . . . . . . . . . Crushed . | . . . . . . . . . . . . Highest Temperature 235 | . 235 31 24 3 175 145 40 16 25 . 6 Average Temperature 35 | . 30 10 4 3 56 69 19 6 8 . 6 Received Heat Transfer 435 | . 18 144 45 . . . . . 126 . 102 Siege Activations . | . . . . . . . . . . . . Robots Corrupted . | . . . . . . . . . . . . Combat Hostiles . | . . . . . . . . . . . . Parts Fried . | . . . . . . . . . . . . Impact Corruptions . | . . . . . . . . . . . . Robots Melted . | . . . . . . . . . . . . Combat Hostiles . | . . . . . . . . . . . . Parts Melted . | . . . . . . . . . . . . Heat Transferred 200 | . 200 . . . . . . . . . . Parts Sabotaged . | . . . . . . . . . . . . Parts Stolen . | . . . . . . . . . . . . Parts Stripped . | . . . . . . . . . . . . Power Chain Reactions 4 | . 2 2 . . . . . . . . . Alert | -11 -10 -9 -8 -7 -6 -6 -6 -5 -5 -4 -3 ------- Run | Yrd Mat Mat Mat Fac Fac Low Low Fac Ext Fac Res Peak Influence 523 | . 229 220 413 223 76 . . 54 200 270 523 Initial 187 | . . 48 92 187 . . . 23 21 98 141 Average 124 | . 116 147 179 112 38 . . 25 77 187 228 Maximum Alert Level 2 | . 1 1 2 1 . . . . 1 1 2 Low Security (%) 78 | 100 98 88 70 55 100 . . 100 99 55 49 Level 1 19 | . 1 11 27 44 . . . . . 44 34 Level 2 1 | . . . 1 . . . . . . . 15 Level 3 . | . . . . . . . . . . . . Level 4 . | . . . . . . . . . . . . Level 5 . | . . . . . . . . . . . . High Security . | . . . . . . . . . . . . Max Security . | . . . . . . . . . . . . Squads Dispatched 13 | . 3 . 5 1 . . . . 2 . 2 Investigation 5 | . . . 4 . . . . . 1 . . Extermination 2 | . . . . 1 . . . . . . 1 Reinforcement 6 | . 3 . 1 . . . . . 1 . 1 Assault . | . . . . . . . . . . . . Garrison . | . . . . . . . . . . . . Intercept . | . . . . . . . . . . . . Searches Triggered 1 | . . . . . . . . . . . 1 Construction Impeded . | . . . . . . . . . . . . Haulers Reinforced . | . . . . . . . . . . . . Active Scanning Responses . | . . . . . . . . . . . . Cargo Convoy Interrupts . | . . . . . . . . . . . . Stealth | -11 -10 -9 -8 -7 -6 -6 -6 -5 -5 -4 -3 --------- Run | Yrd Mat Mat Mat Fac Fac Low Low Fac Ext Fac Res Distress Signals 7 | . . . 1 . . . . . 3 . 3 Communications Jammed 4 | . . . . . . . . . . . 4 Distress Signals 4 | . . . . . . . . . . . 4 Times Spotted 147 | . 29 13 14 2 5 1 . 8 23 10 42 Peak Tracking Total 16 | . 6 7 6 1 3 3 . 6 14 6 16 Tactical Retreats 27 | . 3 1 2 . 3 1 . 2 4 1 10 Traps | -11 -10 -9 -8 -7 -6 -6 -6 -5 -5 -4 -3 ------- Run | Yrd Mat Mat Mat Fac Fac Low Low Fac Ext Fac Res Traps Triggered 10 | . . 1 1 . . . . . 2 3 3 Indirectly . | . . . . . . . . . . . . Trap Hack Attempts . | . . . . . . . . . . . . Triggered . | . . . . . . . . . . . . Disarmed . | . . . . . . . . . . . . Reprogrammed . | . . . . . . . . . . . . Reused . | . . . . . . . . . . . . Traps Extracted . | . . . . . . . . . . . . Installed . | . . . . . . . . . . . . Triggered 1 | . . . . . . . . . 1 . . Machines | -11 -10 -9 -8 -7 -6 -6 -6 -5 -5 -4 -3 ---------- Run | Yrd Mat Mat Mat Fac Fac Low Low Fac Ext Fac Res Machines Disabled 4 | . 2 1 1 . . . . . . . . Max in Single Turn 2 | . 2 1 1 . . . . . . . . Machines Repaired . | . . . . . . . . . . . . Machines Dismantled . | . . . . . . . . . . . . Machines Sabotaged . | . . . . . . . . . . . . Overloaded Fab Kills . | . . . . . . . . . . . . Hacking | -11 -10 -9 -8 -7 -6 -6 -6 -5 -5 -4 -3 --------- Run | Yrd Mat Mat Mat Fac Fac Low Low Fac Ext Fac Res Machines Accessed 22 | . 2 . 3 4 4 . . 1 6 1 1 Terminals 18 | . 1 . 2 4 2 . . 1 6 1 1 Fabricators . | . . . . . . . . . . . . Repair Stations 1 | . . . 1 . . . . . . . . Recycling Units 3 | . 1 . . . 2 . . . . . . Scanalyzers . | . . . . . . . . . . . . Garrison Access . | . . . . . . . . . . . . Total Hacks 44 | . 3 . 16 6 8 . . 1 8 1 1 Successful 17 | . 1 . 7 1 2 . . 1 5 . . Failed 27 | . 2 . 9 5 6 . . . 3 1 1 Catastrophic 7 | . 1 . 1 . 3 . . . 2 . . Database Lockouts . | . . . . . . . . . . . . Manual 23 | . 3 . 4 6 5 . . 1 2 1 1 Terminals 32 | . 1 . 9 6 5 . . 1 8 1 1 Fabricators . | . . . . . . . . . . . . Repair Stations 7 | . . . 7 . . . . . . . . Recycling Units 5 | . 2 . . . 3 . . . . . . Scanalyzers . | . . . . . . . . . . . . Garrison Access . | . . . . . . . . . . . . Terminal Hacks 6 | . . . 1 . 1 . . . 4 . . Prototype ID Bank 1 | . . . 1 . . . . . . . . Open Door 4 | . . . . . . . . . 4 . . Recycling Unit Index 1 | . . . . . 1 . . . . . . Fabricator Hacks . | . . . . . . . . . . . . Repair Station Hacks 6 | . . . 6 . . . . . . . . Scan Component 3 | . . . 3 . . . . . . . . Repair 3 | . . . 3 . . . . . . . . Recycling Unit Hacks 1 | . . . . . 1 . . . . . . Retrieve Matter 1 | . . . . . 1 . . . . . . Scanalyzer . | . . . . . . . . . . . . Garrison Access Hacks . | . . . . . . . . . . . . Unauthorized Hacks 4 | . 1 . . 1 . . . 1 1 . . Terminals 3 | . . . . 1 . . . 1 1 . . Assimilate 2 | . . . . 1 . . . 1 . . . Botnet 1 | . . . . . . . . . 1 . . Fabricators . | . . . . . . . . . . . . Repair Stations . | . . . . . . . . . . . . Recycling Units 1 | . 1 . . . . . . . . . . Reject 1 | . 1 . . . . . . . . . . Scanalyzers . | . . . . . . . . . . . . Garrison Access . | . . . . . . . . . . . . Data Cores Recovered 1 | . 1 . . . . . . . . . . Used . | . . . . . . . . . . . . Hacking Detections 17 | . 1 . 3 3 3 . . 1 4 1 1 Full Trace Events 4 | . . . 3 . . . . . 1 . . Feedback Events . | . . . . . . . . . . . . Feedback Blocked . | . . . . . . . . . . . . Robot Schematics Acquired . | . . . . . . . . . . . . Robots Built . | . . . . . . . . . . . . Authchips . | . . . . . . . . . . . . Time . | . . . . . . . . . . . . Total Robot Build Rating . | . . . . . . . . . . . . Part Schematics Acquired . | . . . . . . . . . . . . Parts Built . | . . . . . . . . . . . . Authchips . | . . . . . . . . . . . . Time . | . . . . . . . . . . . . Total Part Build Rating . | . . . . . . . . . . . . Parts Repaired 3 | . . . 3 . . . . . . . . Time 90 | . . . 90 . . . . . . . . Parts Recycled . | . . . . . . . . . . . . Recycled Matter . | . . . . . . . . . . . . Retrieved Matter . | . . . . . . . . . . . . Retrieved Components . | . . . . . . . . . . . . Parts Scanalyzed . | . . . . . . . . . . . . Part Schematics Acquired . | . . . . . . . . . . . . Parts Damaged . | . . . . . . . . . . . . Bothacking | -11 -10 -9 -8 -7 -6 -6 -6 -5 -5 -4 -3 ------------ Run | Yrd Mat Mat Mat Fac Fac Low Low Fac Ext Fac Res Used RIF Installer . | . . . . . . . . . . . . Robots Hacked . | . . . . . . . . . . . . Non-combat . | . . . . . . . . . . . . Combat . | . . . . . . . . . . . . Robot Hacks Applied . | . . . . . . . . . . . . Relay Couplers Released . | . . . . . . . . . . . . Fabnet Peak Effective % . | . . . . . . . . . . . . Robots Rewired . | . . . . . . . . . . . . Allies Hacked . | . . . . . . . . . . . . Hacks Repelled . | . . . . . . . . . . . . Allies | -11 -10 -9 -8 -7 -6 -6 -6 -5 -5 -4 -3 -------- Run | Yrd Mat Mat Mat Fac Fac Low Low Fac Ext Fac Res Total Allies 13 | . . . . 1 . . . 1 8 . 3 Largest Group 3 | . . . . 1 . . . 1 3 . 3 Highest-Rated Group 190 | . . . . 26 . . . 26 190 . 138 Highest-Rated Ally 159 | . . . . 26 . . . 26 159 . 46 Total Orders . | . . . . . . . . . . . . Ally Attacks 63 | . . . . . . . . . 36 . 27 Total Damage 1640 | . . . . . . . . . 743 . 897 Kills 11 | . . . . . . . . . 6 . 5 Allies Corrupted . | . . . . . . . . . . . . Allies Melted . | . . . . . . . . . . . . Intel | -11 -10 -9 -8 -7 -6 -6 -6 -5 -5 -4 -3 ------- Run | Yrd Mat Mat Mat Fac Fac Low Low Fac Ext Fac Res Robot Analysis Total . | . . . . . . . . . . . . Derelict Logs Recovered 2 | . . . . . . 2 . . . . . Drone Launches . | . . . . . . . . . . . . Drone Recoveries . | . . . . . . . . . . . . Exploration | -11 -10 -9 -8 -7 -6 -6 -6 -5 -5 -4 -3 ------------- Run | Yrd Mat Mat Mat Fac Fac Low Low Fac Ext Fac Res Turns Passed 4714 | 43 1086 236 358 900 375 136 22 154 555 320 529 Spaces Moved 7629 | 36 1316 236 479 1734 892 376 60 232 862 602 804 Core 137 | 1 . . . . . . . . . . 136 Treads . | . . . . . . . . . . . . Legs . | . . . . . . . . . . . . Wheels 255 | 35 220 . . . . . . . . . . Hover . | . . . . . . . . . . . . Flight 7237 | . 1096 236 479 1734 892 376 60 232 862 602 668 Fastest Speed 27 | 50 37 31 29 29 27 27 27 27 27 32 32 Average Speed 35 | 98 57 34 32 29 27 27 28 27 28 35 39 Slowest Speed 250 | 100 117 111 96 29 29 27 97 27 101 37 250 Overloaded Moves . | . . . . . . . . . . . . Propulsion Burnouts . | . . . . . . . . . . . . Robots Hopped 117 | . 6 4 2 33 23 . 1 3 16 15 14 Cave-ins Triggered . | . . . . . . . . . . . . Exploration Rate (%) 35 | 3 98 36 32 22 16 64 9 8 79 22 34 Regions Visited 11 Branch Regions 3 Pre-discovered Areas 1 | . . . . . . 1 . . . . . Known Exits Taken 8 | . . . 1 1 1 1 1 1 1 1 . Unknown Exits Taken 3 | 1 1 1 . . . . . . . . . Scrap Searched 2 | . . . . . . 1 1 . . . . Spaces Dug 78 | . . . 57 . . . . . 5 1 15 Terrain Destroyed 219 | . 21 15 131 . . . . . 5 1 46 Melee 21 | . . . . . . . . . 5 1 15 Projectile 1 | . . . . . . . . . . . 1 AOE 197 | . 21 15 131 . . . . . . . 30 Terrain Rammed . | . . . . . . . . . . . . Walls Destroyed . | . . . . . . . . . . . . Machines Disabled . | . . . . . . . . . . . . Actions | -11 -10 -9 -8 -7 -6 -6 -6 -5 -5 -4 -3 --------- Run | Yrd Mat Mat Mat Fac Fac Low Low Fac Ext Fac Res Total 9223 | 41 1553 343 639 2098 1000 406 63 321 1112 693 954 Wait 1292 | 2 110 67 116 391 122 29 1 83 198 65 108 Move 7403 | 35 1304 227 474 1675 848 375 57 225 834 573 776 Hop 98 | . 5 4 2 25 20 . 1 3 11 13 14 Pick Up 39 | . 19 6 2 3 3 . 1 2 1 1 1 Fast Attach 40 | 4 6 . 8 . . . . 2 4 3 13 Attach 27 | . 5 5 . 1 4 . . 1 1 4 6 Detach 17 | . 3 . . . . . . 2 2 5 5 Swap 36 | . 11 5 7 . 3 . 1 . . 7 2 Drop 48 | . 22 3 5 2 . . 2 3 4 4 3 Fire 130 | . 67 26 25 1 . 2 . . . . 9 Melee 37 | . . . . . . . . . 20 1 16 Ram 3 | . 1 . . . . . . . 1 . 1 Kick . | . . . . . . . . . . . . Crush . | . . . . . . . . . . . . Escape Stasis 53 | . . . . . . . . . 36 17 . Rewire . | . . . . . . . . . . . . Trap . | . . . . . . . . . . . . Miscellaneous . | . . . . . . . . . . . . Route ------- -11/Scrapyard -10/Materials (discovered 5 exits: [*Mat x3] / [*Min x2]) -9/Materials (discovered 2 exits: *Mat / [*Min]) -8/Materials -7/Factory (discovered 2 exits: *Fac / *Low) -6/Factory (discovered 2 exits: *Fac / *Low) -6/Lower Caves -6/Lower Caves -5/Factory (discovered 3 exits: *Fac / Upp / *Ext) -5/Extension (discovered 2 exits: *Fac / *Cet) -4/Factory (discovered 2 exits: *Res / *Upp) -3/Research History --------- Turn | Location | Event 11 | -11/Scrapyard | Discovered new exit (range 14) 44 | -11/Scrapyard | Entered Materials 213 | -10/Materials | Discovered new exit (range 7) 305 | -10/Materials | Build established: Mutant 487 | -10/Materials | Discovered new exit (range 3) 506 | -10/Materials | Discovered new exit (range 8) 652 | -10/Materials | Discovered new exit (range 4) 696 | -10/Materials | Build established: Scavenger-Mutant 725 | -10/Materials | Discovered new exit (range 6) 1130 | -10/Materials | Entered another Materials area 1130 | -9/Materials | Evolved 2 slots: Propulsion x2 1268 | -9/Materials | Discovered new exit (range 12) 1364 | -9/Materials | Discovered new exit (range 6) 1366 | -9/Materials | Entered another Materials area 1366 | -8/Materials | Evolved 2 slots: Utility x2 1449 | -8/Materials | Repaired Flight Unit 1476 | -8/Materials | Repaired Lgt. Ion Engine 1598 | -8/Materials | Repaired Lgt. Deuterium Engine 1710 | -8/Materials | Discovered new exit (range 12) 1724 | -8/Materials | Identified exit to Factory 1724 | -8/Materials | Entered Factory 1724 | -7/Factory | Evolved 2 slots: Power x1, Utility x1 1750 | -7/Factory | Build established: Scavenger-Sprinter 1843 | -7/Factory | Discovered new exit (range 9) 1845 | -7/Factory | Identified exit to Factory 2227 | -7/Factory | Discovered new exit (range 10) 2229 | -7/Factory | Identified exit to Lower Caves 2624 | -7/Factory | Entered another Factory area 2624 | -6/Factory | Evolved 2 slots: Propulsion x1, Utility x1 2644 | -6/Factory | Discovered new exit (range 12) 2650 | -6/Factory | Identified exit to Lower Caves 2724 | -6/Factory | Discovered new exit (range 12) 2933 | -6/Factory | Build established: Scavenger-Scout 2999 | -6/Factory | Entered Lower Caves 3004 | -6/Lower Caves | Learned location of Extension (-5) 3125 | -6/Lower Caves | Discovered new exit (range 10) 3128 | -6/Lower Caves | Identified exit to Lower Caves 3135 | -6/Lower Caves | Entered another Lower Caves area 3147 | -6/Lower Caves | Discovered new exit (range 4) 3148 | -6/Lower Caves | Identified exit to Factory 3157 | -6/Lower Caves | Entered Factory 3157 | -5/Factory | Evolved 2 slots: Propulsion x1, Utility x1 3158 | -5/Factory | Identified exit to Upper Caves 3196 | -5/Factory | Discovered new exit (range 11) 3302 | -5/Factory | Discovered new exit (range 16) 3311 | -5/Factory | Identified exit to Extension 3311 | -5/Factory | Entered Extension 3439 | -5/Extension | Rescued a captive Derelict 3439 | -5/Extension | Rescued a captive Derelict 3582 | -5/Extension | Rescued a captive Derelict 3586 | -5/Extension | Rescued a captive Derelict 3685 | -5/Extension | Rescued a captive Derelict 3686 | -5/Extension | Rescued a captive Derelict 3706 | -5/Extension | Rescued A7 3729 | -5/Extension | Lost 4 allies 3803 | -5/Extension | Spotted B-75 Beast 3807 | -5/Extension | Spotted B-75 Beast 3833 | -5/Extension | Rescued a captive Derelict 3834 | -5/Extension | Rescued a captive Derelict 3855 | -5/Extension | Lost 5 parts (4n1u) 3860 | -5/Extension | Discovered new exit (range 10) 3861 | -5/Extension | Discovered new exit (range 6) 3862 | -5/Extension | Identified exit to Cetus 3863 | -5/Extension | Identified exit to Factory 3866 | -5/Extension | Entered Factory 3866 | -4/Factory | Evolved 2 slots: Propulsion x1, Utility x1 3893 | -4/Factory | Spotted B-86 Titan 3913 | -4/Factory | Discovered new exit (range 9) 3918 | -4/Factory | Identified exit to Upper Caves 4099 | -4/Factory | Build established: Scout 4184 | -4/Factory | Discovered new exit (range 5) 4185 | -4/Factory | Identified exit to Research 4186 | -4/Factory | Entered Research 4186 | -3/Research | Evolved 2 slots: Propulsion x1, Utility x1 4640 | -3/Research | Core integrity fell below 50% 4658 | -3/Research | Lost 11 parts (1p5n4u1w) 4673 | -3/Research | Allied Derelicts emerged from ambush trap array 4686 | -3/Research | Search patrols dispatched 4707 | -3/Research | Core integrity fell below 20% 4715 | -3/Research | Destroyed by C-35 Carver with Carbide Saw Last Messages --------------- 04705_ G-67 Veteran destroyed. 04705_ Slug penetrates Wall. 04705_ R-10 Processor collects Corrupted Wheel. 04706_ Railgun severed. 04707_ K-01 Serf collects debris. 04708_ Acquired 76 matter. 04708_ R-10 Processor collects Lgt. Antimatter Reactor. 04709_ Penetrated by Slug. 04709_ A8-HCY(g) destroyed. 04710_ Acquired 10 matter. 04711_ K-01 Serf collects debris. 04711_ R-10 Processor collects Plasma Rifle. 04713_ Slammed into K-01 Serf. 04713_ Destabilizing: System interference. 04713_ Imp. Signal Interpreter temporarily disabled. 04714_ Adv. Heat Sink severed. 04714_ R-10 Processor collects Adv. Heat Sink. 04715_ R-10 Processor collects Adv. Target Analyzer. Map ----- +----------------------------------------------------+ | ??????## # ## !##???## """ #### | | ??????## # ## ##???## """ #### | | ??????## + #######???## #### | | ###### # #######???## #### | | ############### # ????????## #### | | ## # ????????### ####/####### | | ! ??????## # ????????### # ### | | ? ???????## + ?????????## # ### | | ? ?????? ## # ????????## #"" ### | | ?? ??????? ## ###????????## #"" ### | | # ##????????######"T ### | | ###+########## [ ##????????######"" / | | ##????????????##"" ### ### | | ######### ##????????????## ### ### | | ######### ##????????????## ### ##? | | = ##?????###############??????############# # ? | | # ##?????####### ######## ### # ? | | # ##????????????# [ / / / # ? | | # ##????????????# [* [## ##### ! ### # ? | | # ###############[[%=! ## #???# " " ### # ? | | # # ! ##%!=![ ## #???# ""R"" ### # ? | | # # ## c%! ## #???# """"" #?? ??? | | # # """ """ ####;#####p#???# #?? ?? | | # # """ """ + !%R uu ##### ! #?? ??# | | # # """ """ #### Rck ##T #####/####### ?? | | # # #??# k @ | | # # #??# % | | # # """ """ #??####### k | | # + """ """ #????????# k | | # # """ """ #????????## ################# | | # # #?????????#+#/#????????????????# | | # # #???????? ???????? ####### | | # #####+##########???? #??????? ####### | | ##???# !!!#??????? # | | ##???# !!!#??????? # | | ##???# !! #??????? # | | ##???# #??????? # | | ######## ##???# #??????? # | | ??????## ###### ! # # | | ??????## ##########/######+############# | | ??????## # ## | | ??????## # ??????## | | ??????## = # ??????## | | ??????## == # ??????## | | ??????## == # ??????## | | ??????## """"" """"" == # ## | | ??????## """"" """"" ###+###### | | ??????## """"" """"" | | ??????## | | ??????## | +----------------------------------------------------+ Best States ------------- Heat Dissipation 70 Coolant Potential 65 Energy Generation 28 Energy Capacity 355 Matter Stores 300 Matter Capacity 300 Sight Range 16 Robot Scan Range 18 Terrain Scan Density 10 ECM Strength 1 Jamming Range 14 Armor Coverage 150 Propulsion Shielding 33 Evasion (%) 74 Item Schematics ----------------- None Robot Schematics ------------------ None Fabricated ------------ Nothing Alien Tech Used ----------------- None Achievements -------------- Cya! Prison Break Challenges ------------ None Game ------ Seed CommResetBlade Manual? 0 Play Time 01:32:38 Cumulative 30.4 hours Start 2024.03.26 @ 16:27:39 End 2024.03.26 @ 18:03:48 Sessions 1 Manual Loads 0 Difficulty Rogue Special Mode None Game No. 42 Rogue 42 Adventurer 0 Explorer 0 Win Type - Total 0 Types 0/0/0/0/0/0/0/0/0 Lore% 24 Gallery% 29 Achievement% 27 Wizard Run 0 Options --------- Layout 2 ASCII 0 Keyboard 1 Movement Numpad Keybinds 0 Fullscreen 1 Font 16/SmallcapsGlow Map View 55x47 Zoom Use 0% Tactical HUD 1 Map Filters NONE Filters NONE Steam 1 RUN: 7950a0b1-f07b-434d-a08a-4fe34e9ebb82